fUST/lending_fUST_20250925
["ID","MTS","AMOUNT","RATE_DAILY","PERIOD"]
[387583443,1758774645330,-359.25225523,0.00021809,2]
[387583445,1758774645350,-480.0,0.00021809,2]
[387583447,1758774645365,-794.32,0.00021809,2]
[387583449,1758774645375,-480.0,0.0002181,2]
[387583451,1758774645384,-480.0,0.0002181,2]
[387583453,1758774645394,-530.06,0.0002181,2]
[387583455,1758774645403,-499.35,0.0002181,2]
[387583457,1758774645412,-480.0,0.0002181,2]
[387583459,1758774645422,-480.0,0.0002181,2]
[387583461,1758774645432,-480.0,0.0002181,2]
[387583463,1758774645441,-708.11,0.0002181,2]
[387583465,1758774645451,-480.0,0.0002181,2]
[387583467,1758774645460,-480.0,0.0002181,2]
[387583469,1758774645470,-821.8,0.0002181,2]
[387583471,1758774645480,-949.31,0.0002181,2]
[387583473,1758774645489,-480.0,0.00021811,2]
[387583475,1758774645499,-480.0,0.00021811,2]
[387583477,1758774645509,-970.83,0.00021811,2]
[387583479,1758774645518,-616.73,0.00021811,2]
[387583481,1758774645528,-480.0,0.00021811,2]
[387583483,1758774645537,-480.0,0.00021811,2]
[387583485,1758774645551,-1253.88,0.00021812,2]
[387583487,1758774645561,-741.7,0.00021812,2]
[387583489,1758774645572,-480.0,0.00021812,2]
[387583491,1758774645582,-493.41,0.00021813,2]
[387583493,1758774645592,-509.76,0.00021817,2]
[387583495,1758774645602,-160.0,0.00021841,2]
[387583497,1758774645611,-160.0,0.00021841,2]
[387583500,1758774645621,-160.0,0.00021841,2]
[387583502,1758774645630,-160.0,0.00021841,2]
[387583503,1758774645640,-160.0,0.00021841,2]
[387583505,1758774645650,-233.66602051,0.00021841,2]
[387583508,1758774645660,-978.0,0.0002186,2]
[387583510,1758774645670,-635.0,0.0002186,2]
[387583511,1758774645680,-2160.0,0.0002186,2]
[387583513,1758774645689,-414.178,0.0002186,2]
[387583516,1758774645699,-164.24767411,0.00021918,7]
[387583518,1758774645709,-150.0,0.00021918,7]
[387583520,1758774645719,-500.36552532,0.0002193,2]
[387583522,1758774645728,-501.31987284,0.0002193,2]
[387583524,1758774645739,-284.01641576,0.00022037,2]
[387583526,1758774645748,-1673.45332593,0.00022044,2]
[387583528,1758774645757,-480.0,0.00022083,2]
[387583530,1758774645766,-794.32,0.00022083,2]
[387583531,1758774645776,-480.0,0.00022084,2]
[387583533,1758774645785,-480.0,0.00022084,2]
[387583535,1758774645794,-530.06,0.00022084,2]
[387583536,1758774645803,-499.35,0.00022084,2]
[387583538,1758774645814,-480.0,0.00022084,2]
[387583540,1758774645825,-480.0,0.00022084,2]
[387583542,1758774645835,-444.74225738,0.00022084,2]
[387583544,1758774645844,-708.11,0.00022084,2]
[387583546,1758774645854,-480.0,0.00022084,2]
[387583548,1758774645863,-480.0,0.00022084,2]
[387583550,1758774645872,-821.8,0.00022084,2]
[387583552,1758774645881,-949.31,0.00022084,2]
[387583554,1758774645891,-480.0,0.00022085,2]
[387583556,1758774645900,-480.0,0.00022085,2]
[387583558,1758774645909,-970.83,0.00022085,2]
[387583559,1758774645918,-616.73,0.00022085,2]
[387583561,1758774645928,-480.0,0.00022085,2]
[387583564,1758774645938,-480.0,0.00022085,2]
[387583565,1758774645947,-1253.88,0.00022086,2]
[387583567,1758774645957,-741.7,0.00022086,2]
[387583569,1758774645966,-480.0,0.00022086,2]
[387583571,1758774645975,-493.41,0.00022087,2]
[387583573,1758774645984,-509.76,0.00022091,2]
[387583575,1758774645993,-2052.79,0.000221,2]
[387583577,1758774646003,-4586.0,0.00022158,2]
[387583579,1758774646012,-2500.0,0.00022164,2]
[387583581,1758774646022,-360.0,0.00022272,2]
[387583583,1758774646031,-1500.0,0.00022281,2]
[387583585,1758774646041,-480.0,0.00022357,2]
[387583587,1758774646054,-794.32,0.00022357,2]
[387583589,1758774646064,-480.0,0.00022358,2]
[387583591,1758774646075,-480.0,0.00022358,2]
[387583593,1758774646084,-530.06,0.00022358,2]
[387583595,1758774646094,-499.35,0.00022358,2]
[387583597,1758774646103,-480.0,0.00022358,2]
[387583599,1758774646112,-480.0,0.00022358,2]
[387583601,1758774646122,-708.11,0.00022358,2]
[387583604,1758774646131,-480.0,0.00022358,2]
[387583607,1758774646141,-480.0,0.00022358,2]
[387583609,1758774646151,-821.8,0.00022358,2]
[387583611,1758774646161,-949.31,0.00022358,2]
[387583613,1758774646170,-480.0,0.00022359,2]
[387583615,1758774646180,-480.0,0.00022359,2]
[387583618,1758774646190,-970.83,0.00022359,2]
[387583621,1758774646199,-616.73,0.00022359,2]
[387583623,1758774646208,-480.0,0.00022359,2]
[387583625,1758774646218,-480.0,0.00022359,2]
[387583627,1758774646227,-1253.88,0.0002236,2]
[387583629,1758774646236,-741.7,0.0002236,2]
[387583631,1758774646246,-480.0,0.0002236,2]
[387583632,1758774646256,-493.41,0.00022361,2]
[387583634,1758774646266,-509.76,0.00022365,2]
[387583636,1758774646277,-442.78,0.00022497,2]
[387583638,1758774646287,-150.0,0.0002262,2]
[387583640,1758774646298,-480.0,0.00022631,2]
[387583642,1758774646308,-794.32,0.00022631,2]
[387583644,1758774646321,-480.0,0.00022632,2]
[387583646,1758774646331,-480.0,0.00022632,2]
[387583648,1758774646346,-530.06,0.00022632,2]
[387583650,1758774646357,-499.35,0.00022632,2]
[387583652,1758774646368,-480.0,0.00022632,2]
[387583654,1758774646379,-480.0,0.00022632,2]
[387583656,1758774646389,-708.11,0.00022632,2]
[387583658,1758774646400,-480.0,0.00022632,2]
[387583660,1758774646412,-480.0,0.00022632,2]
[387583662,1758774646422,-821.8,0.00022632,2]
[387583664,1758774646433,-949.31,0.00022632,2]
[387583666,1758774646443,-467.83705062,0.00022633,2]
[387583668,1758774646453,-480.0,0.00022633,2]
[387583670,1758774646463,-970.83,0.00022633,2]
[387583672,1758774646473,-616.73,0.00022633,2]
[387583674,1758774646483,-480.0,0.00022633,2]
[387583676,1758774646493,-480.0,0.00022633,2]
[387583678,1758774646502,-1253.88,0.00022634,2]
[387583680,1758774646512,-741.7,0.00022634,2]
[387583682,1758774646522,-480.0,0.00022634,2]
[387583684,1758774646533,-493.41,0.00022635,2]
[387583686,1758774646542,-509.76,0.00022639,2]
[387583688,1758774646551,-3000.0,0.00022712,2]
[387583690,1758774646561,-460.0,0.0002282,2]
[387583691,1758774646574,-2092.59717142,0.00022829,2]
[387583693,1758774646584,-232.8,0.00022847,3]
[387583694,1758774646594,-176.50778736,0.000229,2]
[387583695,1758774646603,-480.0,0.00022905,2]
[387583696,1758774646613,-794.32,0.00022905,2]
[387583697,1758774646623,-480.0,0.00022906,2]
[387583698,1758774646632,-480.0,0.00022906,2]
[387583699,1758774646643,-530.06,0.00022906,2]
[387583700,1758774646652,-499.35,0.00022906,2]
[387583701,1758774646663,-480.0,0.00022906,2]
[387583702,1758774646672,-480.0,0.00022906,2]
[387583703,1758774646682,-708.11,0.00022906,2]
[387583704,1758774646692,-480.0,0.00022906,2]
[387583705,1758774646702,-480.0,0.00022906,2]
[387583706,1758774646711,-821.8,0.00022906,2]
[387583708,1758774646721,-949.31,0.00022906,2]
[387583710,1758774646731,-480.0,0.00022907,2]
[387583712,1758774646740,-970.83,0.00022907,2]
[387583714,1758774646750,-616.73,0.00022907,2]
[387583716,1758774646760,-480.0,0.00022907,2]
[387583718,1758774646769,-480.0,0.00022907,2]
[387583720,1758774646779,-1253.88,0.00022908,2]
[387583722,1758774646789,-741.7,0.00022908,2]
[387583724,1758774646799,-480.0,0.00022908,2]
[387583726,1758774646808,-493.41,0.00022909,2]
[387583728,1758774646821,-509.76,0.00022913,2]
[387583730,1758774646830,-1912.96934149,0.00022998,2]
[387583732,1758774646840,-42031.6824156,0.00023,2]
[387583734,1758774646854,-94834.55099038,0.00023,2]
[387583736,1758774646863,-151.49531144,0.00023,2]
[387583738,1758774646873,-151.0,0.00023,7]
[387583740,1758774646882,-199.164842,0.00023,7]
[387583742,1758774646892,-152.158349,0.00023,7]
[387583744,1758774646900,-199.164842,0.00023,7]
[387583746,1758774646910,-199.164842,0.00023,7]
[387583748,1758774646920,-199.164842,0.00023,7]
[387583750,1758774646929,-151.0,0.00023,7]
[387583752,1758774646938,-151.0,0.00023,7]
[387583754,1758774646947,-152.854146,0.00023,7]
[387583756,1758774646956,-151.0,0.00023,7]
[387583758,1758774646966,-151.0,0.00023,7]
[387583760,1758774646975,-151.0,0.00023,7]
[387583762,1758774646986,-151.0,0.00023,7]
[387583764,1758774646996,-151.0,0.00023,7]
[387583767,1758774647005,-151.0,0.00023,7]
[387583769,1758774647015,-1673.45332593,0.00023116,2]
[387583771,1758774647024,-300.0,0.00023168,2]
[387583773,1758774647033,-480.0,0.00023179,2]
[387583775,1758774647043,-794.32,0.00023179,2]
[387583777,1758774647052,-448.23248801,0.0002318,2]
[387583779,1758774647061,-480.0,0.0002318,2]
[387583790,1758774647160,-530.06,0.0002318,2]
[387583792,1758774647170,-499.35,0.0002318,2]
[387583794,1758774647180,-480.0,0.0002318,2]
[387583796,1758774647189,-480.0,0.0002318,2]
[387583798,1758774647198,-708.11,0.0002318,2]
[387583800,1758774647208,-480.0,0.0002318,2]
[387583802,1758774647217,-480.0,0.0002318,2]
[387583804,1758774647227,-821.8,0.0002318,2]
[387583806,1758774647236,-949.31,0.0002318,2]
[387583808,1758774647245,-480.0,0.00023181,2]
[387583810,1758774647255,-970.83,0.00023181,2]
[387583812,1758774647264,-616.73,0.00023181,2]
[387583814,1758774647274,-480.0,0.00023181,2]
[387583816,1758774647284,-480.0,0.00023181,2]
[387583818,1758774647294,-1253.88,0.00023182,2]
[387583820,1758774647303,-741.7,0.00023182,2]
[387583822,1758774647313,-480.0,0.00023182,2]
[387583824,1758774647324,-493.41,0.00023183,2]
[387583826,1758774647335,-509.76,0.00023187,2]
[387583828,1758774647348,-517.18989171,0.0002326,2]
[387583830,1758774647359,-962.03,0.00023287,2]
[387583833,1758774647369,-1000.0,0.0002329,2]
[387583834,1758774647379,-1000.0,0.0002329,2]
[387583837,1758774647388,-1000.0,0.0002329,2]
[387583839,1758774647397,-1000.0,0.0002329,2]
[387583841,1758774647407,-1000.0,0.0002329,2]
[387583843,1758774647419,-788.45181069,0.0002329,2]
[387583845,1758774647429,-151.0,0.0002329,2]
[387583847,1758774647438,-151.0,0.0002329,2]
[387583849,1758774647448,-154.80454407,0.0002329,2]
[387583851,1758774647458,-196.01921293,0.00023368,2]
[387583853,1758774647468,-284.01641576,0.00023418,2]
[387583855,1758774647476,-480.0,0.00023453,2]
[387583857,1758774647486,-794.32,0.00023453,2]
[387583859,1758774647495,-480.0,0.00023454,2]
[387583861,1758774647505,-530.06,0.00023454,2]
[387583863,1758774647515,-499.35,0.00023454,2]
[387583865,1758774647524,-480.0,0.00023454,2]
[387583867,1758774647534,-480.0,0.00023454,2]
[387583869,1758774647545,-708.11,0.00023454,2]
[387583871,1758774647554,-273.46316739,0.00023454,2]
[387583873,1758774647564,-480.0,0.00023454,2]
[387583875,1758774647577,-821.8,0.00023454,2]
[387583877,1758774647586,-949.31,0.00023454,2]
[387583879,1758774647596,-480.0,0.00023455,2]
[387583881,1758774647606,-970.83,0.00023455,2]
[387583883,1758774647616,-616.73,0.00023455,2]
[387583885,1758774647626,-480.0,0.00023455,2]
[387583887,1758774647635,-480.0,0.00023455,2]
[387583889,1758774647645,-1253.88,0.00023456,2]
[387583891,1758774647655,-741.7,0.00023456,2]
[387583894,1758774647664,-480.0,0.00023456,2]
[387583896,1758774647674,-493.41,0.00023457,2]
[387583897,1758774647683,-509.76,0.00023461,2]
[387583900,1758774647692,-179.69451932,0.00023637,2]
[387583902,1758774647702,-480.0,0.00023727,2]
[387583904,1758774647711,-794.32,0.00023727,2]
[387583905,1758774647720,-480.0,0.00023728,2]
[387583907,1758774647730,-530.06,0.00023728,2]
[387583909,1758774647740,-499.35,0.00023728,2]
[387583911,1758774647749,-480.0,0.00023728,2]
[387583913,1758774647758,-480.0,0.00023728,2]
[387583915,1758774647768,-708.11,0.00023728,2]
[387583917,1758774647777,-480.0,0.00023728,2]
[387583919,1758774647787,-821.8,0.00023728,2]
[387583921,1758774647797,-949.31,0.00023728,2]
[387583923,1758774647806,-480.0,0.00023729,2]
[387583925,1758774647817,-970.83,0.00023729,2]
[387583927,1758774647826,-616.73,0.00023729,2]
[387583929,1758774647836,-480.0,0.00023729,2]
[387583931,1758774647845,-480.0,0.00023729,2]
[387583933,1758774647855,-1253.88,0.0002373,2]
[387583935,1758774647864,-741.7,0.0002373,2]
[387583937,1758774647874,-480.0,0.0002373,2]
[387583939,1758774647884,-493.41,0.00023731,2]
[387583941,1758774647893,-509.76,0.00023735,2]
[387583943,1758774647903,-1029.7,0.00023998,3]
[387583945,1758774647912,-480.0,0.00024001,2]
[387583947,1758774647921,-794.32,0.00024001,2]
[387583949,1758774647933,-480.0,0.00024002,2]
[387583951,1758774647942,-530.06,0.00024002,2]
[387583953,1758774647952,-499.35,0.00024002,2]
[387583955,1758774647961,-460.9958567,0.00024002,2]
[387583957,1758774647970,-480.0,0.00024002,2]
[387583959,1758774647980,-708.11,0.00024002,2]
[387583961,1758774647990,-480.0,0.00024002,2]
[387583963,1758774647999,-821.8,0.00024002,2]
[387583965,1758774648009,-949.31,0.00024002,2]
[387583967,1758774648018,-480.0,0.00024003,2]
[387583969,1758774648028,-970.83,0.00024003,2]
[387583971,1758774648037,-616.73,0.00024003,2]
[387583973,1758774648047,-480.0,0.00024003,2]
[387583975,1758774648056,-1253.88,0.00024004,2]
[387583977,1758774648065,-741.7,0.00024004,2]
[387583979,1758774648076,-480.0,0.00024004,2]
[387583981,1758774648086,-493.41,0.00024005,2]
[387583983,1758774648095,-509.76,0.00024009,2]
[387583985,1758774648105,-972.32,0.00024075,5]
[387583987,1758774648115,-1673.45332593,0.00024187,2]
[387583989,1758774648124,-480.0,0.00024275,2]
[387583991,1758774648134,-794.32,0.00024275,2]
[387583993,1758774648143,-480.0,0.00024276,2]
[387583995,1758774648153,-530.06,0.00024276,2]
[387583997,1758774648163,-499.35,0.00024276,2]
[387584020,1758774648386,-222.2854205,0.00024276,2]
[387584022,1758774648396,-708.11,0.00024276,2]
[387584024,1758774648406,-480.0,0.00024276,2]
[387584027,1758774648419,-821.8,0.00024276,2]
[387584029,1758774648429,-949.31,0.00024276,2]
[387584030,1758774648438,-480.0,0.00024277,2]
[387584032,1758774648448,-970.83,0.00024277,2]
[387584035,1758774648458,-616.73,0.00024277,2]
[387584036,1758774648468,-480.0,0.00024277,2]
[387584038,1758774648479,-1253.88,0.00024278,2]
[387584040,1758774648489,-741.7,0.00024278,2]
[387584042,1758774648499,-480.0,0.00024278,2]
[387584044,1758774648510,-493.41,0.00024279,2]
[387584046,1758774648520,-509.76,0.00024283,2]
[387584049,1758774648533,-250.0,0.000243,10]
[387584051,1758774648543,-216.87999059,0.00024329,12]
[387584053,1758774648553,-664.17,0.00024371,2]
[387584055,1758774648563,-250.0,0.000244,10]
[387584057,1758774648574,-232.8,0.00024406,4]
[387584059,1758774648583,-250.0,0.000245,10]
[387584061,1758774648593,-480.0,0.00024549,2]
[387584063,1758774648603,-794.32,0.00024549,2]
[387584065,1758774648612,-480.0,0.0002455,2]
[387584067,1758774648622,-530.06,0.0002455,2]
[387584069,1758774648631,-499.35,0.0002455,2]
[387584071,1758774648641,-708.11,0.0002455,2]
[387584073,1758774648651,-480.0,0.0002455,2]
[387584075,1758774648660,-821.8,0.0002455,2]
[387584076,1758774648670,-949.31,0.0002455,2]
[387584078,1758774648680,-480.0,0.00024551,2]
[387584080,1758774648690,-970.83,0.00024551,2]
[387584082,1758774648699,-616.73,0.00024551,2]
[387584084,1758774648709,-525.07877521,0.00024551,2]
[387584087,1758774648718,-1253.88,0.00024552,2]
[387584089,1758774648727,-741.7,0.00024552,2]
[387584091,1758774648737,-480.0,0.00024552,2]
[387584093,1758774648747,-493.41,0.00024553,2]
[387584095,1758774648756,-509.76,0.00024557,2]
[387584096,1758774648766,-250.0,0.000246,10]
[387584098,1758774648776,-9971.68120309,0.0002465,2]
[387584100,1758774648786,-250.0,0.000247,10]
[387584102,1758774648796,-2000.0,0.00024796,3]
[387584105,1758774648807,-284.01641576,0.000248,2]
[387584106,1758774648819,-250.0,0.000248,10]
[387584108,1758774648828,-151.0,0.000248,7]
[387584110,1758774648838,-151.0,0.000248,7]
[387584112,1758774648848,-151.0,0.000248,7]
[387584114,1758774648858,-151.0,0.000248,7]
[387584116,1758774648868,-151.0,0.000248,7]
[387584119,1758774648878,-3275.4198164,0.000248,2]
[387584120,1758774648888,-535.38,0.00024823,2]
[387584122,1758774648898,-794.32,0.00024823,2]
[387584124,1758774648908,-620.86,0.00024824,2]
[387584126,1758774648918,-530.06,0.00024824,2]
[387584128,1758774648928,-499.35,0.00024824,2]
[387584130,1758774648938,-708.11,0.00024824,2]
[387584132,1758774648948,-480.0,0.00024824,2]
[387584134,1758774648958,-821.8,0.00024824,2]
[387584136,1758774648968,-949.31,0.00024824,2]
[387584138,1758774648978,-970.83,0.00024825,2]
[387584141,1758774648988,-616.73,0.00024825,2]
[387584142,1758774648998,-1253.88,0.00024826,2]
[387584145,1758774649008,-741.7,0.00024826,2]
[387584146,1758774649018,-480.0,0.00024826,2]
[387584149,1758774649029,-493.41,0.00024827,2]
[387584151,1758774649039,-509.76,0.00024831,2]
[387584153,1758774649048,-978.0,0.0002486,2]
[387584155,1758774649057,-635.0,0.0002486,2]
[387584157,1758774649067,-2160.0,0.0002486,2]
[387584159,1758774649078,-410.0,0.0002486,2]
[387584161,1758774649087,-157.193213,0.0002486,7]
[387584162,1758774649096,-199.516749,0.0002486,7]
[387584165,1758774649106,-2052.79,0.000249,2]
[387584167,1758774649115,-151.0,0.000249,7]
[387584169,1758774649125,-155.492607,0.000249,7]
[387584171,1758774649135,-151.0,0.000249,7]
[387584173,1758774649144,-153.074967,0.000249,7]
[387584175,1758774649154,-155.269055,0.000249,7]
[387584176,1758774649164,-151.0,0.000249,7]
[387584179,1758774649174,-163.077903,0.000249,7]
[387584181,1758774649184,-199.876404,0.000249,7]
[387584182,1758774649193,-157.062607,0.000249,7]
[387584184,1758774649202,-151.0,0.000249,7]
[387584186,1758774649212,-151.0,0.000249,7]
[387584188,1758774649221,-151.0,0.000249,7]
[387584191,1758774649231,-277.847015,0.000249,10]
[387584193,1758774649240,-151.0,0.000249,7]
[387584194,1758774649250,-151.0,0.000249,7]
[387584196,1758774649259,-151.0,0.000249,7]
[387584198,1758774649269,-151.0,0.000249,7]
[387584201,1758774649278,-151.0,0.000249,7]
[387584203,1758774649290,-64597.37898568,0.000249,2]
[387584205,1758774649303,-1000.1909736,0.000249,2]
[387584207,1758774649314,-1020.9000002,0.000249,2]
[387584210,1758774649327,-20442.60000672,0.000249,2]
[387584212,1758774649342,-697.59919671,0.000249,2]
[387584214,1758774649353,-4317.6658882,0.000249,2]
[387584216,1758774649365,-30079.00000054,0.000249,2]
[387584226,1758774649455,-480.0,0.00019343,2]
[387584228,1758774649464,-480.0,0.00019344,2]
[387584230,1758774649473,-3214.22,0.0002299,10]
[387584232,1758774649483,-11375.92431193,0.000249,2]
[387584235,1758774649495,-40100.0,0.000249,2]
[387584237,1758774649506,-316.5354621,0.000249,2]
[387584239,1758774649517,-853.79934507,0.000249,2]
[387584241,1758774649528,-400.0,0.000249,2]
[387585874,1758775018825,500.0,0.00027397,120]
[387585876,1758775079980,209.64,0.00015984,2]
[387585877,1758775080452,209.64,0.00015984,2]
[387585878,1758775080724,209.63,0.00015984,2]
[387585879,1758775108812,10000.0,0.00027397,120]
[387585881,1758775176185,1002.0,0.00018,2]
[387585883,1758775316492,-182.94255346,0.00019273,2]
[387585884,1758775316523,-776.30391365,0.00019273,2]
[387585888,1758775434098,5535.82,0.00019,2]
[387585905,1758775536724,-182.94255346,0.00019273,2]
[387585906,1758775536755,-517.53594242,0.00019273,2]
[387585907,1758775546805,-494.88176214,0.00019341,2]
[387585908,1758775546840,-564.44633765,0.00019341,2]
[387585909,1758775546868,-480.0,0.00019341,2]
[387585910,1758775546896,-480.0,0.00019341,2]
[387585911,1758775546924,-480.0,0.00019341,2]
[387585912,1758775547158,-618.53073764,0.00019342,2]
[387585913,1758775556838,-480.0,0.00019341,2]
[387585914,1758775558704,161.79814984,0.00019242,2]
[387585915,1758775559423,399.64776656,0.00019341,2]
[387585916,1758775566987,-9438.5640836,0.00019342,2]
[387585917,1758775576874,-482.9208736,0.00019341,2]
[387585918,1758775583894,-2625.87903238,0.00019342,2]
[387585919,1758775583918,-4748.25193524,0.00019342,2]
[387585920,1758775590525,-369.5317252,0.00019341,2]
[387585921,1758775596253,-392.39212785,0.00019342,2]
[387585922,1758775596282,-480.0,0.00019342,2]
[387585923,1758775596313,-276.06107382,0.00019342,2]
[387585924,1758775596342,-499.09272893,0.00019342,2]
[387585925,1758775596373,-790.32,0.00019342,2]
[387585926,1758775596402,-480.0,0.00019342,2]
[387585927,1758775596430,-480.0,0.00019342,2]
[387585928,1758775596459,-480.0,0.00019342,2]
[387585929,1758775596489,-483.91675022,0.00019342,2]
[387585930,1758775596522,-480.0,0.00019342,2]
[387585931,1758775596686,-316.44463836,0.00019342,2]
[387585932,1758775599931,-73.99322689,0.00019342,2]
[387585933,1758775599961,-480.0,0.00019342,2]
[387585934,1758775599990,-480.0,0.00019342,2]
[387585935,1758775600020,-480.0,0.00019342,2]
[387585936,1758775600049,-480.0,0.00019342,2]
[387585937,1758775600078,-480.0,0.00019342,2]
[387585938,1758775600107,-480.0,0.00019342,2]
[387585939,1758775600134,-500.0,0.00019342,2]
[387585940,1758775600162,-494.8571705,0.00019342,2]
[387585941,1758775600189,-500.07130705,0.00019342,2]
[387585942,1758775600216,-488.53907316,0.00019342,2]
[387585943,1758775600375,-125.0884448,0.00019342,2]
[387585944,1758775605215,321.51423172,0.00019078,2]
[387585945,1758775611756,-354.9115552,0.00019342,2]
[387585946,1758775611789,-480.0,0.00019342,2]
[387585947,1758775611820,-480.0,0.00019342,2]
[387585948,1758775611852,-480.0,0.00019342,2]
[387585949,1758775611883,-480.0,0.00019342,2]
[387585950,1758775611919,-491.82694816,0.00019342,2]
[387585951,1758775611950,-485.78060634,0.00019342,2]
[387585952,1758775611979,-481.67216273,0.00019342,2]
[387585953,1758775612009,-480.0,0.00019342,2]
[387585954,1758775612040,-480.0,0.00019342,2]
[387585955,1758775612205,-611.62745514,0.00019342,2]
[387585956,1758775628535,10008.0798238,0.00018346,2]
[387585957,1758775769140,-319.75766874,0.00019142,2]
[387585958,1758775769160,-154.75830795,0.00019241,2]
[387585988,1758775836501,-418.04334595,0.00019241,2]
[387585995,1758775836558,-1201.14049041,0.00019241,2]
[387585998,1758775836573,-6611.59172966,0.00019241,2]
[387586137,1758775837854,-236.42415857,0.00019241,2]
[387586139,1758775837865,-161.79814984,0.00019242,2]
[387586141,1758775837880,-300.0,0.00019272,2]
[387586142,1758775837890,-176.54082976,0.00019273,2]
[387586144,1758775837900,-2646.34922297,0.00019273,2]
[387586146,1758775837911,-757.39,0.00019341,2]
[387586148,1758775837923,-480.0,0.00019341,2]
[387586150,1758775837934,-480.0,0.00019341,2]
[387586152,1758775837944,-480.0,0.00019341,2]
[387586154,1758775837959,-485.37198796,0.00019341,2]
[387586156,1758775837970,-480.0,0.00019341,2]
[387586158,1758775837980,-480.0,0.00019341,2]
[387586160,1758775837990,-484.84926276,0.00019341,2]
[387586161,1758775838001,-480.0,0.00019341,2]
[387586163,1758775838011,-480.0,0.00019341,2]
[387586165,1758775838021,-480.0,0.00019341,2]
[387586167,1758775838032,-670.1,0.00019341,2]
[387586169,1758775838042,-480.0,0.00019341,2]
[387586170,1758775838052,-480.0,0.00019341,2]
[387586172,1758775838063,-511.60244018,0.00019341,2]
[387586174,1758775838073,-480.0,0.00019341,2]
[387586176,1758775838083,-480.0,0.00019341,2]
[387586178,1758775838095,-9425.24231612,0.00019342,2]
[387586180,1758775838108,-528.08298489,0.00019342,2]
[387586182,1758775838120,-1014.47500226,0.00019342,2]
[387586185,1758775838138,-3290.88347323,0.00019342,2]
[387586187,1758775838148,-481.36940069,0.00019342,2]
[387586199,1758775838291,-483.98288976,0.00019342,2]
[387586202,1758775838306,-480.0,0.00019342,2]
[387586204,1758775838317,-480.0,0.00019342,2]
[387586205,1758775838327,-499.84498605,0.00019342,2]
[387586207,1758775838336,-480.0,0.00019342,2]
[387586209,1758775838346,-480.0,0.00019342,2]
[387586211,1758775838355,-480.0,0.00019342,2]
[387586213,1758775838365,-480.0,0.00019342,2]
[387586214,1758775838374,-480.0,0.00019342,2]
[387586216,1758775838384,-480.0,0.00019342,2]
[387586218,1758775838393,-480.0,0.00019342,2]
[387586220,1758775838402,-480.0,0.00019342,2]
[387586221,1758775838411,-480.0,0.00019342,2]
[387586223,1758775838421,-480.0,0.00019342,2]
[387586225,1758775838431,-332.11720013,0.00019342,2]
[387586227,1758775838441,-543.11,0.00019342,2]
[387586228,1758775838451,-480.0,0.00019342,2]
[387586230,1758775838462,-480.0,0.00019342,2]
[387586232,1758775838472,-480.0,0.00019342,2]
[387586234,1758775838483,-480.0,0.00019342,2]
[387586236,1758775838493,-480.0,0.00019342,2]
[387586237,1758775838504,-515.32588682,0.00019342,2]